fUSD/lending_fUSD_20250504
["ID","MTS","AMOUNT","RATE_DAILY","PERIOD"]
[359830893,1746361043438,-21452.9,0.00019863,2]
[359830894,1746361043463,-483.49,0.00019863,2]
[359830895,1746361043489,-559.14564381,0.00019863,2]
[359830896,1746361043514,-1175.08,0.00019863,2]
[359830897,1746361043538,-7121.29,0.00019863,2]
[359830898,1746361043562,-450.0,0.00019863,2]
[359830899,1746361043584,-450.0,0.00019863,2]
[359830900,1746361043607,-461.92,0.00019863,2]
[359830901,1746361043628,-451.5,0.00019863,2]
[359830902,1746361043651,-616.41,0.00019863,2]
[359830903,1746361043672,-450.0,0.00019863,2]
[359830904,1746361043695,-3384.1,0.00019863,2]
[359830905,1746361043718,-522.11,0.00019863,2]
[359830906,1746361043740,-450.0,0.00019863,2]
[359830907,1746361043764,-450.0,0.00019863,2]
[359830908,1746361043787,-47342.55,0.00019863,2]
[359830909,1746361043811,-2179.83,0.00019863,2]
[359830910,1746361043836,-462.52,0.00019863,2]
[359830911,1746361043861,-450.0,0.00019863,2]
[359830912,1746361043886,-2298.39,0.00019863,2]
[359830913,1746361043910,-1219.58222125,0.0001987,2]
[359830914,1746361043934,-500.0,0.00019872,2]
[359830915,1746361043961,-500.0,0.00019873,2]
[359830916,1746361043983,-500.0,0.00019873,2]
[359830917,1746361044004,-500.0,0.00019873,2]
[359830918,1746361044026,-500.0,0.00019873,2]
[359830919,1746361044049,-500.0,0.00019873,2]
[359830920,1746361044085,-500.60466733,0.00019873,2]
[359830921,1746361044107,-302.01142521,0.00019873,2]
[359830922,1746361044131,-508.14953659,0.00019873,2]
[359830923,1746361044155,-500.0,0.00019873,2]
[359830924,1746361044176,-500.0,0.00019873,2]
[359830925,1746361044200,-500.0,0.00019873,2]
[359830926,1746361044222,-500.0,0.00019873,2]
[359830927,1746361044244,-243.83231524,0.00019873,2]
[359830928,1746361044267,-500.0,0.00019873,2]
[359830929,1746361044290,-500.21059738,0.00019873,2]
[359830930,1746361044312,-153.93340078,0.00019873,2]
[359830931,1746361044334,-344.6693912,0.00019873,2]
[359830932,1746361044601,-500.30362522,0.00019873,2]
[359830933,1746361044624,-162.74641742,0.00019873,2]
[359830934,1746361044647,-500.0,0.00019873,2]
[359830935,1746361044669,-500.42110426,0.00019873,2]
[359830936,1746361044691,-629.19071202,0.00019873,2]
[359830937,1746361044712,-500.0,0.00019873,2]
[359830938,1746361044734,-500.0,0.00019873,2]
[359830939,1746361044756,-500.0,0.00019873,2]
[359830940,1746361044779,-501.90942623,0.00019873,2]
[359830941,1746361044801,-250.0,0.00019875,2]
[359830942,1746361044824,-562.08,0.0001989,2]
[359830943,1746361044848,-450.0,0.0001989,2]
[359830944,1746361044872,-450.0,0.0001989,2]
[359830945,1746361044899,-671.71,0.0001989,2]
[359830946,1746361044922,-450.0,0.0001989,2]
[359830947,1746361044945,-450.0,0.0001989,2]
[359830948,1746361044967,-450.0,0.0001989,2]
[359830949,1746361044990,-450.0,0.0001989,2]
[359830950,1746361045013,-450.0,0.0001989,2]
[359830951,1746361045037,-453.06,0.0001989,2]
[359830952,1746361045062,-775.82,0.0001989,2]
[359830953,1746361045087,-450.0,0.0001989,2]
[359830954,1746361045110,-784.28,0.0001989,2]
[359830955,1746361045133,-450.0,0.0001989,2]
[359830956,1746361045157,-450.0,0.0001989,2]
[359830957,1746361045180,-450.0,0.0001989,2]
[359830958,1746361045204,-1013.07,0.0001989,2]
[359830959,1746361045227,-1671.15,0.0001989,2]
[359830960,1746361045250,-872.42,0.0001989,2]
[359830961,1746361045274,-2222.86,0.0001989,2]
[359830962,1746361045297,-626.22,0.0001989,2]
[359830963,1746361045319,-450.0,0.0001989,2]
[359830964,1746361045343,-924.21,0.0001989,2]
[359830965,1746361045365,-450.0,0.0001989,2]
[359830966,1746361045387,-450.0,0.0001989,2]
[359830967,1746361045410,-1739.8,0.0001989,2]
[359830968,1746361045434,-625.62,0.0001989,2]
[359830969,1746361045456,-1163.64,0.0001989,2]
[359830970,1746361045478,-1006.47,0.0001989,2]
[359830971,1746361045502,-500.0,0.0001989,2]
[359830972,1746361045524,-450.0,0.0001989,2]
[359830973,1746361045547,-450.0,0.0001989,2]
[359830974,1746361045568,-1171.82,0.0001989,2]
[359830975,1746361045590,-450.0,0.0001989,2]
[359830976,1746361045613,-21452.9,0.0001989,2]
[359830977,1746361045636,-483.49,0.0001989,2]
[359830978,1746361045657,-1175.08,0.0001989,2]
[359830979,1746361045679,-7121.29,0.0001989,2]
[359830980,1746361045702,-450.0,0.0001989,2]
[359830981,1746361045724,-450.0,0.0001989,2]
[359830982,1746361045747,-461.92,0.0001989,2]
[359830983,1746361045769,-451.5,0.0001989,2]
[359830984,1746361045792,-616.41,0.0001989,2]
[359830985,1746361045814,-450.0,0.0001989,2]
[359830986,1746361045837,-3384.1,0.0001989,2]
[359830987,1746361045860,-522.11,0.0001989,2]
[359830988,1746361045884,-316.9389024,0.0001989,2]
[359830989,1746361045907,-450.0,0.0001989,2]
[359830990,1746361045931,-47342.55,0.0001989,2]
[359830991,1746361045952,-2179.83,0.0001989,2]
[359830992,1746361045975,-450.0,0.0001989,2]
[359830993,1746361045999,-2298.39,0.0001989,2]
[359830994,1746361046022,-1000.0,0.000199,2]
[359830995,1746361046044,-2500.0,0.000199,2]
[359830996,1746361046067,-1219.58222125,0.000199,2]
[359830997,1746361046094,-12500.0,0.000199,2]
[359830998,1746361046118,-9967.67977762,0.000199,2]
[359830999,1746361046140,-2709.48240365,0.000199,2]
[359831000,1746361046162,-161.33345751,0.000199,2]
[359831001,1746361046183,-164.335077,0.000199,2]
[359831002,1746361046205,-762.24656847,0.000199,2]
[359831003,1746361046227,-205.57268741,0.000199,3]
[359831004,1746361046250,-562.08,0.00019917,2]
[359831005,1746361046271,-450.0,0.00019917,2]
[359831006,1746361046294,-450.0,0.00019917,2]
[359831007,1746361046317,-671.71,0.00019917,2]
[359831008,1746361046340,-450.0,0.00019917,2]
[359831009,1746361046361,-586.77850139,0.00019917,2]
[359831010,1746361046383,-450.0,0.00019917,2]
[359831011,1746361046404,-450.0,0.00019917,2]
[359831012,1746361046427,-450.0,0.00019917,2]
[359831013,1746361046449,-453.06,0.00019917,2]
[359831014,1746361046472,-775.82,0.00019917,2]
[359831015,1746361046495,-450.0,0.00019917,2]
[359831016,1746361046517,-784.28,0.00019917,2]
[359831017,1746361046539,-441.14200781,0.00019917,2]
[359831018,1746361046561,-450.0,0.00019917,2]
[359831019,1746361046584,-450.0,0.00019917,2]
[359831020,1746361046607,-1013.07,0.00019917,2]
[359831021,1746361046630,-1671.15,0.00019917,2]
[359831022,1746361046652,-872.42,0.00019917,2]
[359831023,1746361046674,-2222.86,0.00019917,2]
[359831024,1746361046696,-626.22,0.00019917,2]
[359831025,1746361046719,-450.0,0.00019917,2]
[359831026,1746361046742,-924.21,0.00019917,2]
[359831027,1746361046765,-450.0,0.00019917,2]
[359831028,1746361046788,-450.0,0.00019917,2]
[359831029,1746361046811,-1739.8,0.00019917,2]
[359831030,1746361046834,-625.62,0.00019917,2]
[359831031,1746361046857,-1163.64,0.00019917,2]
[359831032,1746361046879,-1006.47,0.00019917,2]
[359831033,1746361046902,-450.0,0.00019917,2]
[359831034,1746361046928,-450.0,0.00019917,2]
[359831035,1746361046951,-1171.82,0.00019917,2]
[359831036,1746361046974,-450.0,0.00019917,2]
[359831037,1746361046998,-21452.9,0.00019917,2]
[359831038,1746361047021,-483.49,0.00019917,2]
[359831039,1746361047043,-1175.08,0.00019917,2]
[359831040,1746361047065,-7121.29,0.00019917,2]
[359831041,1746361047095,-450.0,0.00019917,2]
[359831042,1746361047117,-450.0,0.00019917,2]
[359831043,1746361047140,-461.92,0.00019917,2]
[359831044,1746361047164,-451.5,0.00019917,2]
[359831045,1746361047187,-616.41,0.00019917,2]
[359831046,1746361047210,-450.0,0.00019917,2]
[359831047,1746361047234,-3384.1,0.00019917,2]
[359831048,1746361047259,-522.11,0.00019917,2]
[359831049,1746361047281,-450.0,0.00019917,2]
[359831050,1746361047304,-47342.55,0.00019917,2]
[359831051,1746361047327,-2179.83,0.00019917,2]
[359831052,1746361047350,-450.0,0.00019917,2]
[359831053,1746361047374,-2298.39,0.00019917,2]
[359831054,1746361047397,-313.63728395,0.00019944,2]
[359831055,1746361047420,-251.06450912,0.00019944,2]
[359831056,1746361047441,-231.03709884,0.00019944,2]
[359831057,1746361047464,-500.0,0.00019944,2]
[359831058,1746361047487,-199.99770662,0.00019944,2]
[359831059,1746361047510,-500.0,0.00019944,2]
[359831060,1746361047534,-500.0,0.00019944,2]
[359831061,1746361047556,-500.0,0.00019944,2]
[359831062,1746361047577,-500.0,0.00019944,2]
[359831063,1746361047600,-500.0,0.00019944,2]
[359831064,1746361047624,-452.87883141,0.00019944,2]
[359831065,1746361047647,-500.0,0.00019944,2]
[359831066,1746361047671,-500.0,0.00019944,2]
[359831067,1746361047693,-500.0,0.00019944,2]
[359831068,1746361047716,-500.0,0.00019944,2]
[359831069,1746361047738,-500.0,0.00019944,2]
[359831070,1746361047760,-500.0,0.00019944,2]
[359831071,1746361047782,-500.0,0.00019944,2]
[359831072,1746361047806,-500.0,0.00019944,2]
[359831073,1746361047831,-500.0,0.00019944,2]
[359831074,1746361047856,-205.0,0.00019944,2]
[359831075,1746361047877,-1122.0,0.00019945,2]
[359831076,1746361047899,-562.08,0.00019945,2]
[359831077,1746361047921,-450.0,0.00019945,2]
[359831078,1746361047943,-450.0,0.00019945,2]
[359831079,1746361047965,-671.71,0.00019945,2]
[359831080,1746361047986,-450.0,0.00019945,2]
[359831081,1746361048152,-450.0,0.00019945,2]
[359831082,1746361048182,-450.0,0.00019945,2]
[359831083,1746361048204,-450.0,0.00019945,2]
[359831084,1746361048225,-453.06,0.00019945,2]
[359831085,1746361048249,-775.82,0.00019945,2]
[359831086,1746361048272,-513.20772408,0.00019945,2]
[359831087,1746361048294,-784.28,0.00019945,2]
[359831088,1746361048317,-450.0,0.00019945,2]
[359831089,1746361048339,-450.0,0.00019945,2]
[359831090,1746361048363,-1013.07,0.00019945,2]
[359831091,1746361048386,-1671.15,0.00019945,2]
[359831092,1746361048409,-872.42,0.00019945,2]
[359831093,1746361048432,-2222.86,0.00019945,2]
[359831094,1746361048454,-626.22,0.00019945,2]
[359831095,1746361048476,-450.0,0.00019945,2]
[359831096,1746361048498,-924.21,0.00019945,2]
[359831097,1746361048520,-217.56,0.00019945,2]
[359831098,1746361048542,-450.0,0.00019945,2]
[359831099,1746361048564,-1739.8,0.00019945,2]
[359831100,1746361048587,-625.62,0.00019945,2]
[359831101,1746361048608,-1163.64,0.00019945,2]
[359831102,1746361048630,-1006.47,0.00019945,2]
[359831103,1746361048652,-450.0,0.00019945,2]
[359831104,1746361048675,-450.0,0.00019945,2]
[359831105,1746361048697,-1171.82,0.00019945,2]
[359831106,1746361048719,-450.0,0.00019945,2]
[359831107,1746361048741,-21452.9,0.00019945,2]
[359831108,1746361048764,-483.49,0.00019945,2]
[359831109,1746361048786,-1175.08,0.00019945,2]
[359831110,1746361048808,-7121.29,0.00019945,2]
[359831111,1746361048830,-450.0,0.00019945,2]
[359831112,1746361048852,-450.0,0.00019945,2]
[359831113,1746361048874,-461.92,0.00019945,2]
[359831114,1746361048896,-451.5,0.00019945,2]
[359831115,1746361048918,-616.41,0.00019945,2]
[359831116,1746361048940,-450.0,0.00019945,2]
[359831117,1746361048963,-3384.1,0.00019945,2]
[359831118,1746361048984,-522.11,0.00019945,2]
[359831119,1746361049005,-450.0,0.00019945,2]
[359831120,1746361049028,-47342.55,0.00019945,2]
[359831121,1746361049050,-2179.83,0.00019945,2]
[359831122,1746361049075,-450.0,0.00019945,2]
[359831123,1746361049099,-2298.39,0.00019945,2]
[359831124,1746361049121,-878.0,0.00019971,2]
[359831125,1746361049143,-1300.0,0.00019971,2]
[359831126,1746361049165,-878.0,0.00019971,2]
[359831127,1746361049186,-925.0,0.00019971,2]
[359831128,1746361049208,-1140.0,0.00019971,2]
[359831129,1746361049230,-797.0,0.00019971,2]
[359831130,1746361049251,-1208.0,0.00019971,2]
[359831131,1746361049273,-550.0,0.00019971,2]
[359831132,1746361049295,-581.0,0.00019971,2]
[359831133,1746361049317,-915.0,0.00019971,2]
[359831134,1746361049340,-1451.0,0.00019971,2]
[359831135,1746361049361,-1657.0,0.00019971,2]
[359831136,1746361049384,-562.08,0.00019972,2]
[359831137,1746361049405,-450.0,0.00019972,2]
[359831138,1746361049427,-450.0,0.00019972,2]
[359831139,1746361049448,-671.71,0.00019972,2]
[359831140,1746361049469,-450.0,0.00019972,2]
[359831141,1746361049491,-450.0,0.00019972,2]
[359831142,1746361049514,-450.0,0.00019972,2]
[359831143,1746361049537,-450.0,0.00019972,2]
[359831144,1746361049558,-453.06,0.00019972,2]
[359831145,1746361049581,-775.82,0.00019972,2]
[359831146,1746361049603,-784.28,0.00019972,2]
[359831147,1746361049625,-450.0,0.00019972,2]
[359831148,1746361049647,-519.16758936,0.00019972,2]
[359831149,1746361049670,-1013.07,0.00019972,2]
[359831150,1746361049692,-1671.15,0.00019972,2]
[359831151,1746361049714,-872.42,0.00019972,2]
[359831152,1746361049737,-2222.86,0.00019972,2]
[359831153,1746361049759,-626.22,0.00019972,2]
[359831154,1746361049782,-450.0,0.00019972,2]
[359831155,1746361049804,-924.21,0.00019972,2]
[359831156,1746361049827,-450.0,0.00019972,2]
[359831157,1746361049850,-1739.8,0.00019972,2]
[359831158,1746361049873,-625.62,0.00019972,2]
[359831159,1746361049896,-1163.64,0.00019972,2]
[359831160,1746361049918,-1006.47,0.00019972,2]
[359831161,1746361049940,-450.0,0.00019972,2]
[359831162,1746361049963,-450.0,0.00019972,2]
[359831163,1746361049989,-1171.82,0.00019972,2]
[359831164,1746361050011,-450.0,0.00019972,2]
[359831165,1746361050035,-21452.9,0.00019972,2]
[359831166,1746361050058,-483.49,0.00019972,2]
[359831167,1746361050085,-1175.08,0.00019972,2]
[359831168,1746361050107,-7121.29,0.00019972,2]
[359831169,1746361050132,-450.0,0.00019972,2]
[359831170,1746361050155,-450.0,0.00019972,2]
[359831171,1746361050178,-461.92,0.00019972,2]
[359831172,1746361050201,-451.5,0.00019972,2]
[359831173,1746361050224,-616.41,0.00019972,2]
[359831174,1746361050248,-450.0,0.00019972,2]
[359831175,1746361050270,-3384.1,0.00019972,2]
[359831176,1746361050293,-522.11,0.00019972,2]
[359831177,1746361050315,-450.0,0.00019972,2]
[359831178,1746361050339,-13721.22112568,0.00019972,2]
[359831179,1746361058870,7514.53,0.00018996,2]
[359831180,1746361058892,8419.81,0.00018996,2]
[359831181,1746361125216,164.21,0.0001511,2]
[359831182,1746361186194,1000.0,0.00018865,2]
[359831183,1746361205679,415.98,0.00019,2]
[359831184,1746361205700,1281.41,0.00019,2]
[359831185,1746361207430,1697.39,0.00019,2]
[359831197,1746361331662,-309.75259917,0.00019527,2]
[359831198,1746361409209,491.4059625,0.00019218,2]
[359831199,1746361411748,-183.71959744,0.00019518,2]
[359831200,1746361415687,-200.0,0.00019518,2]
[359831201,1746361422314,-107.68636516,0.00019518,2]
[359831202,1746361510616,5594.93004005,0.000154,2]
[359831203,1746361528413,934.86399745,0.00011,2]
[359831204,1746361528670,15.06165593,0.00011,2]
[359831205,1746361528697,264.83,0.00018786,2]
[359831206,1746361528725,264.83,0.0001879,2]
[359831207,1746361528854,264.83,0.00018795,2]
[359831208,1746361529061,264.83,0.000188,2]
[359831209,1746361529291,264.83,0.00018805,2]
[359831210,1746361529498,264.83,0.0001881,2]
[359831211,1746361529683,264.83,0.00018815,2]
[359831212,1746361529881,264.83,0.0001882,2]
[359831213,1746361530096,264.83,0.00018825,2]
[359831214,1746361530338,264.83,0.0001883,2]
[359831215,1746361530542,264.83,0.00018835,2]
[359831216,1746361530745,264.83,0.0001884,2]
[359831217,1746361530955,264.83,0.00018845,2]
[359831218,1746361531186,264.83,0.0001885,2]
[359831219,1746361531382,264.83,0.00018855,2]
[359831220,1746361531579,264.83,0.00018859,2]
[359831221,1746361531783,264.83,0.00018864,2]
[359831222,1746361532186,264.83,0.00018869,2]
[359831223,1746361532389,264.83,0.00018874,2]
[359831224,1746361532577,264.83,0.00018879,2]
[359831225,1746361537392,4688.33834407,9e-05,2]
[359831226,1746361537414,10000.0,9e-05,2]
[359831227,1746361537438,9478.04824965,9e-05,2]
[359831228,1746361550385,500.0,0.00018784,3]
[359831229,1746361556252,21.95175035,6.94e-05,2]
[359831230,1746361556273,4940.01483841,6.94e-05,2]
[359831232,1746361563841,5059.98516159,8e-05,2]
[359831233,1746361563862,2119.64494195,8e-05,2]
[359831234,1746361606547,6047.66545749,0.00030136,120]
[359831235,1746361630296,430.15521537,0.00015,2]
[359831239,1746361640111,251.35880352,0.000101,2]
[359831249,1746361674476,4010.17998417,0.0001,2]
[359831253,1746361692935,2003.3157463,0.0001439,2]
[359831255,1746361718387,259.53301647,0.000107,2]
[359831257,1746361722802,920.34769937,0.00013368,2]
[359831260,1746361730387,5.46459285,0.00018789,2]
[359831261,1746361730407,244.53540715,0.00018789,2]
[359831285,1746361782501,7475.93142452,0.000187,2]
[359831286,1746361801483,198.0,0.000195,2]
[359831287,1746361820159,198.0,0.000195,2]
[359831299,1746361832248,-772.76865634,0.00019579,2]
[359831300,1746361832258,-508.09947473,0.0001958,2]
[359831303,1746361832414,-264.66918161,0.0001958,2]
[359831304,1746361832424,-150.65107933,0.00019626,2]
[359831305,1746361832435,-1091.73023,0.00019626,2]
[359831306,1746361832444,-704.37873561,0.00019653,2]
[359831307,1746361832456,-1716.80885001,0.00019653,2]
[359831308,1746361832467,-706.032608,0.00019653,2]
[359831309,1746361832478,-321.29154664,0.00019653,2]
[359831310,1746361832490,-2690.38679582,0.00019653,2]
[359831311,1746361832499,-1242.38130931,0.00019656,2]
[359831312,1746361832509,-6138.89853608,0.0001968,2]
[359831313,1746361832518,-1242.38130931,0.00019687,2]
[359831314,1746361832528,-1200.0,0.00019699,2]
[359831315,1746361832538,-25656.0,0.000197,2]
[359831316,1746361832547,-1000.0,0.000197,2]
[359831317,1746361832557,-500.0,0.00019703,2]
[359831318,1746361832566,-500.0,0.00019703,2]
[359831319,1746361832575,-492.7302953,0.00019703,2]
[359831320,1746361832584,-151.0,0.00019714,2]
[359831321,1746361832594,-207.4,0.00019714,2]
[359831322,1746361832603,-668.65185757,0.00019714,2]
[359831323,1746361832613,-280.87424643,0.00019716,2]
[359831324,1746361832622,-163.84,0.00019716,2]
[359831325,1746361832631,-163.84,0.00019716,2]
[359831326,1746361832640,-510.28,0.00019716,2]
[359831328,1746361832650,-1242.38130931,0.00019717,2]
[359831330,1746361832659,-450.0,0.00019726,2]
[359831332,1746361832669,-450.0,0.00019726,2]
[359831334,1746361832678,-450.0,0.00019726,2]
[359831336,1746361832688,-450.0,0.00019726,2]
[359831338,1746361832697,-450.0,0.00019726,2]
[359831340,1746361832706,-450.0,0.00019726,2]
[359831342,1746361832716,-450.0,0.00019726,2]
[359831344,1746361832726,-450.0,0.00019726,2]
[359831347,1746361832735,-450.0,0.00019726,2]
[359831350,1746361832745,-450.0,0.00019726,2]
[359831353,1746361832756,-450.0,0.00019726,2]
[359831355,1746361832765,-450.0,0.00019726,2]
[359831358,1746361832775,-450.0,0.00019726,2]
[359831388,1746361832986,-450.0,0.00019726,2]
[359831390,1746361832996,-450.0,0.00019726,2]
[359831392,1746361833005,-450.0,0.00019726,2]
[359831394,1746361833015,-450.0,0.00019726,2]
[359831396,1746361833024,-531.45327096,0.00019726,2]
[359831398,1746361833034,-450.0,0.00019726,2]
[359831400,1746361833045,-450.0,0.00019726,2]
[359831402,1746361833054,-450.0,0.00019726,2]
[359831404,1746361833065,-450.0,0.00019726,2]
[359831406,1746361833074,-450.0,0.00019726,2]
[359831408,1746361833084,-450.0,0.00019726,2]
[359831410,1746361833093,-190.62917693,0.00019726,2]
[359831412,1746361833103,-450.0,0.00019726,2]
[359831414,1746361833112,-450.0,0.00019726,2]
[359831416,1746361833122,-466.64,0.00019726,2]
[359831418,1746361833132,-450.0,0.00019726,2]
[359831420,1746361833141,-450.0,0.00019726,2]
[359831422,1746361833151,-450.0,0.00019726,2]
[359831424,1746361833160,-450.0,0.00019726,2]
[359831426,1746361833169,-450.0,0.00019726,2]
[359831428,1746361833179,-450.0,0.00019726,2]
[359831430,1746361833189,-361.49376082,0.00019726,2]
[359831432,1746361833199,-450.0,0.00019726,2]
[359831434,1746361833208,-550.53,0.00019726,2]
[359831436,1746361833219,-507.66574456,0.00019726,2]
[359831438,1746361833228,-450.0,0.00019726,2]
[359831440,1746361833238,-450.0,0.00019726,2]
[359831442,1746361833248,-371.40428258,0.00019726,2]
[359831444,1746361833257,-450.0,0.00019726,2]
[359831446,1746361833267,-450.0,0.00019726,2]
[359831448,1746361833276,-410.84219768,0.00019726,2]
[359831450,1746361833290,-39.15780232,0.00019726,2]
[359831452,1746361833300,-450.0,0.00019726,2]
[359831454,1746361833310,-298.56756877,0.00019726,2]
[359831456,1746361833321,-151.43243123,0.00019726,2]
[359831458,1746361833331,-441.91799738,0.00019726,2]
[359831459,1746361833342,-8.08200262,0.00019726,2]
[359831460,1746361833352,-450.0,0.00019726,2]
[359831461,1746361833362,-180.76737491,0.00019726,2]
[359831462,1746361833373,-269.23262509,0.00019726,2]
[359831463,1746361833387,-2.18180291,0.00019726,2]
[359831464,1746361833398,-295.80682,0.00019726,2]
[359831465,1746361833419,-152.01137709,0.00019726,2]
[359831466,1746361833429,-392.98110133,0.00019726,2]
[359831467,1746361833439,-450.0,0.00019726,2]
[359831468,1746361833447,-466.37,0.00019726,2]
[359831469,1746361833457,-450.0,0.00019726,2]
[359831470,1746361833466,-450.0,0.00019726,2]
[359831471,1746361833475,-450.0,0.00019726,2]
[359831472,1746361833485,-450.0,0.00019726,2]
[359831473,1746361833494,-450.0,0.00019726,2]
[359831474,1746361833504,-450.0,0.00019726,2]
[359831475,1746361833513,-450.0,0.00019726,2]
[359831476,1746361833522,-450.0,0.00019726,2]
[359831477,1746361833532,-450.0,0.00019726,2]
[359831478,1746361833541,-450.0,0.00019726,2]
[359831479,1746361833550,-450.0,0.00019726,2]
[359831480,1746361833560,-450.0,0.00019726,2]
[359831481,1746361833570,-450.0,0.00019726,2]
[359831482,1746361833579,-450.0,0.00019726,2]
[359831483,1746361833588,-450.0,0.00019726,2]
[359831484,1746361833597,-450.0,0.00019726,2]
[359831485,1746361833606,-450.0,0.00019726,2]
[359831486,1746361833616,-328.39348647,0.00019726,2]
[359831487,1746361833625,-573.48,0.00019726,2]
[359831488,1746361833634,-450.0,0.00019726,2]
[359831489,1746361833643,-450.0,0.00019726,2]
[359831490,1746361833652,-222.3766659,0.00019726,2]
[359831491,1746361833661,-304.99,0.00019726,2]
[359831492,1746361833670,-450.0,0.00019726,2]
[359831493,1746361833679,-450.0,0.00019726,2]
[359831494,1746361833688,-450.0,0.00019726,2]
[359831495,1746361833697,-450.0,0.00019726,2]
[359831496,1746361833706,-450.0,0.00019726,2]
[359831497,1746361833715,-406.56,0.00019726,2]
[359831498,1746361833725,-399.63,0.00019726,2]
[359831499,1746361833734,-450.0,0.00019726,2]
[359831500,1746361833743,-450.0,0.00019726,2]
[359831501,1746361833753,-450.0,0.00019726,2]
[359831502,1746361833762,-450.0,0.00019726,2]
[359831503,1746361833771,-450.0,0.00019726,2]
[359831504,1746361833780,-450.0,0.00019726,2]
[359831505,1746361833791,-450.0,0.00019726,2]
[359831506,1746361833800,-450.0,0.00019726,2]
[359831507,1746361833809,-575.6,0.00019726,2]
[359831508,1746361833818,-450.0,0.00019726,2]
[359831509,1746361833828,-543.69,0.00019726,2]
[359831510,1746361833837,-450.0,0.00019726,2]
[359831511,1746361833846,-372.93368299,0.00019726,2]
[359831512,1746361833856,-517.87168755,0.00019726,2]
[359831513,1746361833872,-450.0,0.00019726,2]
[359831514,1746361833881,-450.0,0.00019726,2]
[359831515,1746361833891,-450.0,0.00019726,2]
[359831516,1746361833901,-450.0,0.00019726,2]
[359831517,1746361833910,-450.0,0.00019726,2]
[359831518,1746361833919,-450.0,0.00019726,2]
[359831519,1746361833928,-565.95,0.00019726,2]
[359831520,1746361833938,-450.0,0.00019726,2]
[359831521,1746361833947,-450.0,0.00019726,2]
[359831522,1746361833957,-450.0,0.00019726,2]
[359831523,1746361833966,-544.53660554,0.00019726,2]
[359831524,1746361833975,-594.97,0.00019726,2]
[359831525,1746361833984,-450.0,0.00019726,2]
[359831526,1746361833993,-450.0,0.00019726,2]
[359831527,1746361834002,-450.0,0.00019726,2]
[359831528,1746361834011,-450.0,0.00019726,2]
[359831529,1746361834020,-450.0,0.00019726,2]
[359831530,1746361834029,-450.0,0.00019726,2]
[359831531,1746361834038,-462.36,0.00019726,2]
[359831532,1746361834047,-450.0,0.00019726,2]
[359831533,1746361834056,-450.0,0.00019726,2]
[359831534,1746361834065,-450.0,0.00019726,2]
[359831535,1746361834075,-466.14,0.00019726,2]
[359831536,1746361834084,-547.62,0.00019726,2]
[359831537,1746361834093,-450.0,0.00019726,2]
[359831538,1746361834102,-450.0,0.00019726,2]
[359831539,1746361834110,-450.0,0.00019726,2]
[359831540,1746361834119,-450.0,0.00019726,2]
[359831541,1746361834128,-163.78637491,0.00019726,2]